bitfinex-derivatives/quotes_ETHF0:USTF0_20250620
["timestamp","ask_amount","ask_price","bid_price","bid_amount"]
[1750418818653,24.64234,2546.5,2546.4,8.63754]
[1750418819850,0.78534,2546.5,2546.4,8.63754]
[1750418820048,9.3398,2546.6,2546.5,0.78531]
[1750418820252,33.1938,2546.6,2546.5,8.63751]
[1750418820447,3.2078,2546.6,2546.5,8.63751]
[1750418820647,3.2078,2546.6,2546.5,8.70684781]
[1750418820948,3.2078,2546.6,2546.5,10.07504781]
[1750418822050,3.99308,2546.6,2546.5,8.70684781]
[1750418822551,3.99308,2546.6,2546.5,8.63751]
[1750418823051,3.99308,2546.6,2546.5,7.8522]
[1750418823550,3.99308,2546.6,2546.5,8.63751]
[1750418824149,5.11787732,2546.6,2546.5,8.63751]
[1750418824451,3.99308,2546.6,2546.5,8.63751]
[1750418825253,5.11805491,2546.6,2546.5,8.63751]
[1750418828257,5.11805491,2546.6,2546.5,7.8522]
[1750418829258,5.11805491,2546.6,2546.5,8.63751]
[1750418829458,5.11805491,2546.6,2546.5,7.8522]
[1750418829659,5.11805491,2546.6,2546.5,8.63751]
[1750418831656,1.91025491,2546.6,2546.5,7.8522]
[1750418833553,0.78534,2546.4,2546.3,0.6773]
[1750418833755,0.78543,2546.1,2546.0,3.2078]
[1750418833958,0.78543,2546.1,2546.0,4.68565]
[1750418834161,0.78543,2546.1,2546.0,12.53785]
[1750418834767,0.78543,2546.2,2546.1,0.78541]
[1750418835166,0.78543,2546.2,2546.1,8.63761]
[1750418837066,0.78543,2546.2,2546.1,7.8522]
[1750418837268,0.78543,2546.1,2546.0,0.6924]
[1750418837659,0.78543,2546.1,2546.0,8.5446]
[1750418838357,0.78543,2546.1,2546.0,9.33007]
[1750418839671,0.78543,2546.2,2546.1,0.78543]
[1750418839967,0.78543,2546.2,2546.1,8.70696781]
[1750418840168,0.78543,2546.2,2546.1,10.06926781]
[1750418846875,0.78543,2546.2,2546.1,8.70696781]
[1750418849479,0.78543,2546.2,2546.1,0.85476781]
[1750418849672,0.78537,2546.4,2546.3,0.78534]
[1750418849871,31.88202048,2546.4,2546.3,0.78534]
[1750418850074,8.03702048,2546.4,2546.3,1.44004]
[1750418850476,8.03702048,2546.4,2546.3,0.6547]
[1750418851481,8.03702048,2546.4,2546.3,1.44007]
[1750418852684,8.03702048,2546.4,2546.3,0.6547]
[1750418852879,8.03702048,2546.4,2546.3,1.44007]
[1750418854785,8.03702048,2546.4,2546.3,0.6547]
[1750418855588,8.03702048,2546.4,2546.3,1.44007]
[1750418856188,8.03702048,2546.4,2546.3,1.50940781]
[1750418856488,31.87902048,2546.4,2546.3,1.50940781]
[1750418856686,1.91102048,2546.4,2546.3,9.36160781]
[1750418857089,1.91144322,2546.4,2546.3,9.36160781]
[1750418858191,1.9115278,2546.4,2546.3,9.36160781]
[1750418861093,1.9115278,2546.4,2546.3,9.29227]
[1750418862196,1.9115278,2546.4,2546.3,9.36160781]
[1750418863493,1.9115278,2546.4,2546.3,8.57623781]
[1750418866393,1.9115278,2546.4,2546.3,0.72403781]
[1750418866795,0.78537,2546.4,2546.3,0.72403781]
[1750418866996,1.91111692,2546.4,2546.3,0.72403781]
[1750418867392,25.74911692,2546.4,2546.3,0.72403781]
[1750418867590,25.74911692,2546.4,2546.3,1.50940781]
[1750418868099,25.74911692,2546.4,2546.3,0.72403781]
[1750418871092,28.84167252,2546.4,2546.3,0.72403781]
[1750418872798,28.84167252,2546.4,2546.3,1.50940781]
[1750418873000,25.74911692,2546.4,2546.3,0.72403781]
[1750418873700,25.74911692,2546.4,2546.3,1.50940781]
[1750418873892,25.74911692,2546.4,2546.3,0.72403781]
[1750418874207,25.74911692,2546.4,2546.3,1.50940781]
[1750418874498,25.74911692,2546.4,2546.3,9.36160781]
[1750418876396,8.03111692,2546.4,2546.3,9.36160781]
[1750418876602,31.86511692,2546.4,2546.3,9.36160781]
[1750418878803,31.86511692,2546.4,2546.3,8.57623781]
[1750418879503,31.86511692,2546.4,2546.3,9.29227]
[1750418880406,31.86511692,2546.4,2546.3,9.36160781]
[1750418880799,31.86311692,2546.4,2546.3,9.36160781]
[1750418883907,8.03111692,2546.4,2546.3,9.36160781]
[1750418884206,31.86211692,2546.4,2546.3,9.36160781]
[1750418888705,31.86211692,2546.4,2546.3,8.57623781]
[1750418889812,31.86211692,2546.4,2546.3,9.29227]
[1750418890218,31.86211692,2546.4,2546.3,8.5069]
[1750418892812,0.7855,2546.0,2545.9,0.78547]
[1750418893016,0.7855,2546.0,2545.9,1.43207]
[1750418893217,0.7855,2546.0,2545.9,10.56787]
[1750418896115,0.78543,2546.2,2546.1,0.78539]
[1750418896314,24.61143,2546.2,2546.1,8.63759]
[1750418898017,6.8974,2546.3,2546.2,0.7854]
[1750418898207,31.84867539,2546.3,2546.2,2.6879]
[1750418898408,31.84867539,2546.3,2546.2,10.5401]
[1750418899513,1.91167539,2546.3,2546.2,10.5401]
[1750418900815,1.12627539,2546.3,2546.2,10.5401]
[1750418901216,1.91164539,2546.3,2546.2,10.5401]
[1750418906014,1.91164539,2546.3,2546.2,8.5015]
[1750418906318,1.91164539,2546.3,2546.2,9.2869]
[1750418910412,0.7854,2546.2,2546.1,0.78541]
[1750418910618,25.73167539,2546.2,2546.1,0.78541]
[1750418910819,28.82423099,2546.2,2546.1,8.63761]
[1750418911018,28.82423099,2546.2,2546.1,8.70694781]
[1750418911526,28.82423099,2546.2,2546.1,0.06933781]
[1750418911917,0.78544,2546.1,2546.0,1.45544]
[1750418912413,0.78544,2546.1,2546.0,9.30764]
[1750418912823,0.78544,2546.1,2546.0,8.5222]
[1750418913014,8.02436801,2546.1,2546.0,0.67]
[1750418913727,0.7856,2545.7,2545.6,0.78556]
[1750418913922,24.6046,2545.7,2545.6,0.78556]
[1750418914224,24.6046,2545.7,2545.6,8.63776]
[1750418915923,1.96359,2546.1,2545.6,7.8522]
[1750418916124,0.78553,2545.9,2545.8,0.78549]
[1750418916331,0.78553,2545.8,2545.7,2.13603]
[1750418916929,0.78553,2545.8,2545.7,9.98823]
[1750418918730,29.925,2545.9,2545.8,0.78547]
[1750418918929,0.7855,2546.0,2545.9,0.78546]
[1750418919130,30.7105,2546.0,2545.9,0.78546]
[1750418919330,30.7105,2546.0,2545.9,9.94776]
[1750418919636,31.83556556,2546.0,2545.9,9.94776]
[1750418920230,30.7105,2546.0,2545.9,9.94776]
[1750418921121,31.8355086,2546.0,2545.9,9.94776]
[1750418921323,30.7105,2546.0,2545.9,9.94776]
[1750418923324,29.924,2546.0,2545.9,9.94776]
[1750418923531,30.70947,2546.0,2545.9,9.94776]
[1750418923731,29.924,2546.0,2545.9,9.94776]
[1750418924234,30.70947,2546.0,2545.9,9.94776]
[1750418925335,29.924,2546.0,2545.9,9.94776]
[1750418926334,30.70947,2546.0,2545.9,9.94776]
[1750418926535,29.924,2546.0,2545.9,8.63766]
[1750418926732,6.106,2546.0,2545.9,8.63766]
[1750418929739,6.89147,2546.0,2545.9,8.63766]
[1750418930240,6.89147,2546.0,2545.9,8.70699781]
[1750418930846,6.106,2546.0,2545.9,8.70699781]
[1750418931545,6.89147,2546.0,2545.9,8.70699781]
[1750418933240,6.106,2546.0,2545.9,8.70699781]
[1750418935448,6.106,2546.0,2545.9,9.39369781]
[1750418940449,7.23180666,2546.0,2545.9,9.39369781]
[1750418940651,6.106,2546.0,2545.9,9.39369781]
[1750418941156,7.23197769,2546.0,2545.9,9.39369781]
[1750418942157,1.12597769,2546.0,2545.9,9.39369781]
[1750418942555,1.91144769,2546.0,2545.9,9.39369781]
[1750418943754,1.12597769,2546.0,2545.9,9.39369781]
[1750418945461,1.91144769,2546.0,2545.9,9.39369781]
[1750418946151,5.00400329,2546.0,2545.9,8.70699781]
[1750418948366,5.00400329,2546.0,2545.9,0.85479781]
[1750418948567,5.00400329,2546.0,2545.9,0.06933781]
[1750418949567,0.78556,2545.7,2545.6,0.78556]
[1750418949767,30.69456,2545.7,2545.6,8.63776]
[1750418951463,0.78559,2545.6,2545.5,1.4392]
[1750418951655,0.78566,2545.5,2545.4,0.78564]
[1750418951862,0.7857,2545.3,2545.2,0.78568]
[1750418952266,0.7857,2545.3,2545.2,8.63788]
[1750418952663,3.8782556,2545.3,2545.2,7.8522]
[1750418952857,3.8782556,2545.3,2545.2,8.63791]
[1750418953262,3.8782556,2545.3,2545.2,7.8522]
[1750418953464,0.7857,2545.3,2545.2,8.63791]
[1750418953670,0.7857,2545.3,2545.2,0.78571]
[1750418955171,0.78571,2545.2,2545.1,1.45392]
[1750418955363,0.7857,2545.3,2545.2,0.7857]
[1750418955563,6.8867,2545.3,2545.2,0.7857]
[1750418956164,0.78571,2545.2,2545.1,1.45393]
[1750418956365,0.78571,2545.2,2545.1,9.30613]
[1750418957775,0.78571,2545.2,2545.1,9.30614]
[1750418959776,0.78571,2545.2,2545.1,9.37547781]
[1750418959976,6.88671,2545.3,2545.2,0.78571]
[1750418962969,24.59468,2545.4,2545.3,0.78565]
[1750418963275,30.69568,2545.4,2545.3,8.63785]
[1750418966478,30.69568,2545.4,2545.3,9.92565]
[1750418968082,0.78568,2545.4,2545.3,9.92565]
[1750418968280,30.69468,2545.4,2545.3,9.92565]
[1750418970274,30.69468,2545.4,2545.3,9.14]
[1750418975879,30.69468,2545.4,2545.3,9.20933781]
[1750418976785,30.69468,2545.4,2545.3,7.92153781]
[1750418977286,31.81973249,2545.4,2545.3,7.92153781]
[1750418977881,31.81973249,2545.4,2545.3,7.8522]
[1750418979187,31.81973249,2545.4,2545.3,7.92153781]
[1750418980082,31.81973249,2545.4,2545.3,7.8522]
[1750418981081,31.81973249,2545.4,2545.3,7.92153781]
[1750418981992,31.81973249,2545.4,2545.3,7.8522]
[1750418982977,31.81973249,2545.4,2545.3,7.92153781]
[1750418985090,31.80973249,2545.4,2545.3,8.70721781]
[1750418985391,31.80973249,2545.4,2545.3,7.92153781]
[1750418985686,1.91073249,2545.4,2545.3,8.70721781]
[1750418986082,1.91073249,2545.4,2545.3,7.92153781]
[1750418986282,1.91073249,2545.4,2545.3,8.70721781]
[1750418986479,1.91073249,2545.4,2545.3,9.98701781]
[1750418986679,25.71273249,2545.4,2545.3,9.98701781]
[1750418988593,1.91073249,2545.4,2545.3,9.98701781]
[1750418988796,1.12505249,2545.4,2545.3,9.98701781]
[1750418989286,3.99343,2545.5,2545.4,0.78565]
[1750418989488,5.12063627,2545.5,2545.4,9.91045]
[1750418989686,5.12063627,2545.5,2545.4,10.53795]
[1750418991194,1.91283627,2545.5,2545.4,10.53795]
[1750418997305,1.91283627,2545.5,2545.4,8.4797]
[1750418997903,5.12063627,2545.5,2545.4,8.4797]
[1750418998906,5.12063627,2545.5,2545.4,9.26535]
[1750419000204,5.12063627,2545.5,2545.4,10.53455]
[1750419002910,5.12063627,2545.5,2545.4,9.26535]
[1750419003210,0.78565,2545.4,2545.3,0.06933781]
[1750419003408,3.8782056,2545.4,2545.3,0.85501781]
[1750419003609,0.78565,2545.4,2545.3,0.85501781]
[1750419003810,3.99344,2545.5,2545.4,0.78565]
[1750419004012,4.33355139,2545.5,2545.4,8.63785]
[1750419004204,4.33355139,2545.5,2545.4,10.58655]
[1750419004404,5.11917139,2545.5,2545.4,10.58655]
[1750419004911,5.11917139,2545.5,2545.4,9.30505]
[1750419005312,5.11917139,2545.5,2545.4,9.37438781]
[1750419005804,4.33355139,2545.5,2545.4,9.37438781]
[1750419005999,5.11917139,2545.5,2545.4,9.37438781]
[1750419007303,5.11917139,2545.5,2545.4,8.58873781]
[1750419007613,5.11917139,2545.5,2545.4,9.37438781]
[1750419008415,5.11917139,2545.5,2545.4,9.30505]
[1750419010613,5.11935408,2545.5,2545.4,9.30505]
[1750419011310,5.11935408,2545.5,2545.4,8.5194]
[1750419011517,5.11935408,2545.5,2545.4,0.73653781]
[1750419011814,5.11935408,2545.5,2545.4,0.06933781]
[1750419013319,0.78574,2545.1,2545.0,0.78575]
[1750419013616,0.78574,2545.1,2545.0,1.44315]
[1750419013815,0.78574,2545.1,2545.0,9.29535]
[1750419015619,0.78574,2545.1,2545.0,0.6574]
[1750419016216,0.78589,2544.7,2544.6,0.78588]
[1750419016519,0.78586,2544.8,2544.7,0.78587]
[1750419016720,0.78587,2544.7,2544.6,2.77988]
[1750419017110,0.78587,2544.7,2544.6,10.63208]
[1750419017710,6.87486,2544.8,2544.7,0.78587]
[1750419017911,6.87486,2544.8,2544.7,7.8522]
[1750419019020,6.87486,2544.8,2544.7,8.63807]
[1750419020620,6.87486,2544.8,2544.7,7.8522]
[1750419021223,9.9674156,2544.8,2544.7,7.8522]
[1750419021820,0.78598,2544.4,2544.3,0.78597]
[1750419022021,9.9685356,2544.4,2544.3,8.63817]
[1750419022417,6.09,2544.4,2544.3,7.8522]
[1750419022624,3.2078,2544.9,2544.4,1.96491]
[1750419022826,31.80048163,2544.8,2544.7,0.78585]
[1750419023421,0.78588,2544.7,2544.5,1.2721]
[1750419023722,0.78588,2544.7,2544.6,8.70743781]
[1750419023928,30.66786,2544.8,2544.7,0.78587]
[1750419024223,0.78587,2544.7,2544.6,0.85521781]
[1750419024819,29.882,2544.8,2544.6,0.06933781]
[1750419025025,0.78587,2544.7,2544.6,0.85522781]
[1750419026227,6.87587,2544.7,2544.6,0.85522781]
[1750419026929,6.87587,2544.7,2544.6,0.06933781]
[1750419027928,6.87587,2544.7,2544.6,0.85523781]
[1750419027929,6.09,2544.7,2544.6,0.85523781]
[1750419028138,6.09,2544.7,2544.6,2.21403781]
[1750419028423,6.09,2545.2,2545.1,0.78574]
[1750419028630,6.09,2545.2,2545.1,8.63794]
[1750419029129,6.09,2545.2,2545.1,11.7304956]
[1750419029927,6.87571,2545.2,2545.1,7.8522]
[1750419031430,6.09,2545.2,2545.1,8.63794]
[1750419031824,6.87571,2545.2,2545.1,8.63794]
[1750419033330,6.87571,2545.2,2545.1,7.8522]
[1750419034131,6.09,2545.2,2545.1,8.63794]
[1750419035233,6.87571,2545.2,2545.1,8.63794]
[1750419035434,6.09,2545.2,2545.1,8.63794]
[1750419035833,6.09,2545.2,2545.1,8.70727781]
[1750419036029,6.87571,2545.2,2545.1,8.70727781]
[1750419036226,6.09,2545.2,2545.1,8.70727781]
[1750419036427,6.09,2545.4,2545.3,0.78568]
[1750419037027,6.87565,2545.4,2545.3,2.14468]
[1750419038228,6.87565,2545.4,2545.3,1.359]
[1750419038834,6.87565,2545.4,2545.3,2.14468]
[1750419039825,6.87565,2545.4,2545.3,1.359]
[1750419041635,0.78568,2545.3,2545.2,0.6377]
[1750419041831,0.78571,2545.2,2545.1,0.06933781]
[1750419042235,0.78571,2545.2,2545.1,7.92153781]
[1750419043437,0.78571,2545.2,2545.1,0.06933781]
[1750419043637,24.57471,2545.2,2545.1,0.06933781]
[1750419043839,0.78581,2544.9,2544.8,0.658]
[1750419044035,0.78581,2544.9,2544.8,8.5102]
[1750419044036,9.9643656,2544.9,2544.8,8.5102]
[1750419044230,11.1430956,2544.9,2544.5,0.78591]
[1750419044533,11.1430956,2544.9,2544.7,7.8522]
[1750419044534,0.78584,2544.8,2544.7,7.8522]
[1750419044935,0.7859,2544.6,2544.5,1.44391]
[1750419045338,0.7859,2544.6,2544.5,9.29611]
[1750419047834,0.78596,2544.4,2544.3,3.2078]
[1750419048049,0.78602,2544.2,2544.1,1.46904]
[1750419048446,0.78602,2544.2,2544.1,9.32124]
[1750419048946,0.78602,2544.2,2544.1,8.5352]
[1750419049948,0.78597,2544.4,2544.3,0.78596]
[1750419050242,0.78597,2544.4,2544.3,7.8522]
[1750419051238,0.78602,2544.2,2544.1,2.84714]
[1750419051437,0.78602,2544.2,2544.1,10.69934]
[1750419051636,0.78602,2544.2,2544.1,9.9133]
[1750419052044,0.78602,2544.2,2544.1,10.69935]
[1750419052650,0.78602,2544.2,2544.1,9.9133]
[1750419053250,0.78602,2544.2,2544.1,10.69935]
[1750419056149,0.78602,2544.2,2544.1,9.9133]
[1750419056549,0.78602,2544.2,2544.1,8.5352]
[1750419057251,0.78602,2544.2,2544.1,7.8522]
[1750419057556,0.78612,2543.9,2543.8,0.78614]
[1750419057742,6.87411,2544.0,2543.7,1.3436]
[1750419057943,6.088,2544.0,2543.9,8.63831]
[1750419059260,6.87408,2544.0,2543.9,8.63831]
[1750419059462,6.088,2544.0,2543.9,8.63831]
[1750419059662,6.87408,2544.0,2543.9,8.63831]
[1750419059965,6.088,2544.0,2543.9,8.63831]
[1750419060165,6.87408,2544.0,2543.9,8.63831]
[1750419060365,6.87408,2544.0,2543.9,0.78611]
[1750419061567,6.088,2544.0,2543.9,0.78611]
[1750419061862,6.87408,2544.0,2543.9,0.78611]
[1750419062366,0.78619,2543.8,2543.7,0.78615]
[1750419062763,1.96545,2543.7,2543.3,3.2078]
[1750419063068,1.96545,2543.7,2543.5,0.78624]
[1750419063069,30.71122,2543.6,2543.5,0.78624]
[1750419063369,0.78623,2543.6,2543.5,0.78622]
[1750419063568,0.78626,2543.5,2543.4,0.78625]
[1750419064365,6.87426,2543.5,2543.4,0.78625]
[1750419065073,0.78627,2543.4,2543.3,2.75928]
[1750419065370,0.78627,2543.4,2543.3,0.6818]
[1750419065568,0.78627,2543.4,2543.3,1.4681]
[1750419066367,7.52646,2543.5,2543.4,0.78627]
[1750419066666,0.78623,2543.6,2543.5,0.78621]
[1750419066872,30.71823,2543.6,2543.5,0.78621]
[1750419067071,23.843,2543.6,2543.5,2.09411]
[1750419067260,3.994,2543.7,2543.6,0.78621]
[1750419067466,33.93,2543.7,2543.6,0.78621]
[1750419069874,30.7442,2543.7,2543.6,0.78621]
[1750419070370,3.2078,2544.0,2543.9,0.06933781]
[1750419070570,10.10888,2544.0,2543.9,7.92153781]
[1750419070775,9.3228,2544.0,2543.9,8.70764781]
[1750419070971,3.2078,2544.0,2543.9,11.80020341]
[1750419072285,3.2078,2544.3,2544.2,0.78602]
[1750419072775,3.2078,2544.3,2544.2,8.63822]
[1750419072975,3.2078,2544.3,2544.2,9.89202]
[1750419073365,3.99379,2544.3,2544.2,9.89202]
[1750419073676,0.78599,2544.3,2544.2,9.89202]
[1750419076177,6.90097,2544.4,2544.3,0.78599]
[1750419076377,6.90097,2544.4,2544.3,9.94179]
[1750419076973,6.115,2544.4,2544.3,9.94179]
[1750419077775,6.90096,2544.4,2544.3,9.94179]
[1750419078073,6.115,2544.4,2544.3,9.94179]
[1750419078874,0.78592,2544.6,2544.3,9.1558]
[1750419079079,6.114,2544.5,2544.4,2.10006]
[1750419079284,6.89993,2544.5,2544.4,2.10006]
[1750419084889,6.89993,2544.5,2544.4,1.3141]
[1750419085290,6.89993,2544.5,2544.4,2.10006]
[1750419086590,6.89993,2544.5,2544.4,1.3141]
[1750419087790,0.78596,2544.4,2544.3,0.06933781]
[1750419088091,3.99376,2544.4,2544.3,0.06933781]
[1750419090085,3.99376,2544.4,2544.3,0.85532781]
[1750419090986,3.99376,2544.4,2544.3,0.06933781]
[1750419091382,3.99376,2544.4,2544.3,0.85532781]
[1750419091586,33.93876,2544.4,2544.3,0.85532781]
[1750419095092,9.3208,2544.4,2544.3,8.70752781]
[1750419095293,29.936,2544.4,2544.3,8.70752781]
[1750419095492,30.72196,2544.4,2544.3,8.70752781]
[1750419095694,33.92976,2544.4,2544.3,8.70752781]
[1750419096091,33.1438,2544.4,2544.3,8.70752781]
[1750419096294,23.82,2544.4,2544.3,8.70752781]
[1750419096494,0.78594,2544.5,2544.4,0.78596]
[1750419096793,29.935,2544.5,2544.4,8.63816]
[1750419096993,30.72093,2544.5,2544.4,0.78596]
[1750419097388,29.935,2544.5,2544.4,0.78596]
[1750419097787,31.07736789,2544.5,2544.4,0.78596]
[1750419098296,31.07736833,2544.5,2544.4,0.78596]
[1750419098501,31.86329833,2544.5,2544.4,0.78596]
[1750419099597,31.84629833,2544.5,2544.4,8.63816]
[1750419100600,31.06036833,2544.5,2544.4,8.63816]
[1750419101394,31.84629833,2544.5,2544.4,8.63816]
[1750419101592,31.06036833,2544.5,2544.4,8.63816]
[1750419102093,31.84629833,2544.5,2544.4,8.63816]
[1750419102594,31.84629833,2544.5,2544.4,9.99366]
[1750419102792,31.06036833,2544.5,2544.4,9.99366]
[1750419102993,1.14236833,2544.5,2544.4,8.63816]
[1750419103294,3.2078,2544.7,2544.6,0.7859]
[1750419103494,3.2078,2544.7,2544.6,11.7306556]
[1750419103905,3.2078,2544.7,2544.6,12.9865556]
[1750419105799,10.09358,2545.1,2545.0,0.78574]
[1750419106000,35.05454168,2545.1,2545.0,8.63794]
[1750419106202,11.23754168,2545.1,2545.0,8.63794]
[1750419106504,33.91458,2545.1,2545.0,8.63794]
[1750419106906,33.91458,2545.1,2545.0,9.89774]
[1750419107704,33.91454,2545.1,2545.0,9.89774]
[1750419109499,33.91454,2545.1,2545.0,8.63794]
[1750419109697,33.91454,2545.1,2545.0,7.8522]
[1750419109900,0.7858,2545.0,2544.6,1.96475]
[1750419110103,0.7858,2545.0,2544.9,0.78577]
[1750419110309,0.7858,2545.0,2544.9,8.63797]
[1750419110509,33.91456,2545.1,2545.0,0.78577]
[1750419110807,33.91456,2545.1,2545.0,8.63797]
[1750419111000,33.91456,2545.1,2545.0,8.70730781]
[1750419111909,9.3078,2545.1,2545.0,8.70730781]
[1750419112109,33.1188,2545.1,2545.0,8.70730781]
[1750419112509,33.1148,2545.1,2545.0,8.70730781]
[1750419112707,9.3078,2545.1,2545.0,8.70730781]
[1750419113102,9.3078,2545.1,2545.0,8.63797]
[1750419113409,33.1138,2545.1,2545.0,8.63797]
[1750419114107,6.1,2545.1,2545.0,8.63797]
[1750419115204,6.88574,2545.1,2545.0,8.63797]
[1750419116912,9.9782956,2545.1,2545.0,8.63797]
[1750419117214,9.9782956,2545.1,2544.7,0.6478]
[1750419117215,14.3647356,2545.1,2544.7,0.6478]
[1750419117405,3.8783856,2544.9,2544.8,0.78581]
[1750419117904,0.78583,2544.9,2544.8,0.78581]
[1750419118106,0.78583,2544.9,2544.8,8.63801]
[1750419118311,29.907,2544.9,2544.8,8.63801]
[1750419119617,29.907,2545.0,2544.9,0.7858]
[1750419119816,29.907,2545.0,2544.9,8.638]
[1750419121416,3.99356,2545.1,2545.0,0.78577]
[1750419122016,3.2078,2545.1,2545.0,8.63797]
[1750419122215,6.8837,2545.3,2545.2,0.78571]
[1750419122418,31.98020364,2545.3,2545.2,0.78571]
[1750419122818,0.78573,2545.2,2545.1,0.78572]
[1750419123117,30.83971,2545.3,2545.2,0.78571]
[1750419123420,31.98030781,2545.3,2545.2,0.78571]
[1750419123617,30.83971,2545.3,2545.2,0.78571]
[1750419124020,31.98031497,2545.3,2545.2,0.78571]
[1750419124220,31.98031497,2545.3,2544.9,2.61101]
[1750419124221,34.28716057,2545.3,2544.9,0.6465]
[1750419124412,0.78577,2545.0,2544.6,5.17252]
[1750419124721,0.78577,2545.0,2544.9,0.7858]
[1750419124920,0.78577,2545.0,2544.9,8.638]
[1750419125314,0.78583,2544.9,2544.7,0.6606]
[1750419125513,0.78584,2544.8,2544.7,8.63805]
[1750419125714,6.88384,2544.8,2544.7,0.78585]
[1750419125920,6.88384,2544.8,2544.4,1.96488]
[1750419125921,0.78595,2544.5,2544.4,0.78594]
[1750419126116,0.78595,2544.5,2544.4,8.63814]
[1750419126813,23.954,2544.6,2544.5,0.78593]
[1750419126814,24.73992,2544.6,2544.5,0.78593]
[1750419127408,1.3221,2544.7,2544.6,0.7859]
[1750419127607,34.29742508,2544.7,2544.4,7.8522]
[1750419127821,0.78592,2544.6,2544.5,0.78592]
[1750419128527,0.78594,2544.5,2544.4,0.78594]
[1750419128710,24.74994,2544.5,2544.4,7.8522]
[1750419128914,0.78596,2544.4,2544.3,0.78597]
[1750419129318,24.74995,2544.5,2544.4,0.78596]
[1750419129515,24.74995,2544.5,2544.4,8.63816]
[1750419129718,24.74995,2544.5,2544.4,0.78596]
[1750419137429,24.74995,2544.5,2544.4,8.63816]
[1750419138230,23.964,2544.5,2544.4,8.63816]
[1750419138433,24.74993,2544.5,2544.4,8.63816]
[1750419138728,23.964,2544.5,2544.4,8.63816]
[1750419139133,24.74993,2544.5,2544.4,8.63816]
[1750419139628,24.74993,2544.5,2544.4,8.70749781]
[1750419140026,24.74993,2544.5,2544.4,0.85529781]
[1750419140634,27.95773,2544.5,2544.4,0.06933781]
[1750419140929,31.0502856,2544.5,2544.4,0.06933781]
[1750419141929,31.0502856,2544.5,2544.4,0.85529781]
[1750419142329,27.95773,2544.5,2544.4,0.85529781]
[1750419142525,27.95773,2544.5,2544.4,0.06933781]
[1750419142731,31.0502856,2544.5,2544.4,0.06933781]
[1750419143333,31.6998856,2544.5,2544.4,0.06933781]
[1750419144133,32.84197516,2544.5,2544.4,0.06933781]
[1750419144337,32.84202481,2544.5,2544.4,0.06933781]
[1750419145338,31.6998856,2544.5,2544.4,0.06933781]
[1750419145543,32.84210158,2544.5,2544.4,0.06933781]
[1750419145743,32.84210158,2544.5,2544.4,0.85529781]
[1750419146242,32.84210158,2544.5,2544.4,0.06933781]
[1750419146439,1.96507,2544.2,2543.4,3.2078]
[1750419146644,0.78616,2543.8,2543.7,8.63834]
[1750419146955,0.78618,2543.7,2543.6,8.63839]
[1750419147247,6.96918,2543.7,2543.6,8.63839]
[1750419148141,6.96918,2543.7,2543.6,7.8522]
[1750419148344,12.4833556,2543.7,2543.5,0.78623]
[1750419148553,0.78624,2543.5,2543.3,0.6513]
[1750419148752,0.78624,2543.5,2543.4,0.78624]
[1750419148948,24.72024,2543.5,2543.4,0.78624]
[1750419150247,30.90524,2543.5,2543.4,0.78624]
[1750419150952,0.78627,2543.4,2543.3,1.43757]
[1750419151447,0.78627,2543.4,2543.3,9.28977]
[1750419152051,0.78627,2543.4,2543.3,8.5035]
[1750419152346,3.99407,2543.4,2543.3,0.6513]
[1750419152551,0.78633,2543.2,2543.1,0.78635]
[1750419152743,0.78633,2543.2,2543.1,1.46975]
[1750419152945,24.71532,2543.3,2543.2,0.78633]
[1750419153245,24.71532,2543.3,2543.2,8.63853]
[1750419153559,24.71532,2543.3,2543.2,10.01543]
[1750419154651,0.78636,2543.2,2543.1,0.78633]
[1750419154844,27.0215556,2543.3,2543.2,8.6385]
[1750419154845,6.97033,2543.3,2543.2,8.6385]
[1750419155044,30.89733,2543.3,2543.2,8.6385]
[1750419155245,30.89733,2543.3,2543.2,9.926]
[1750419155440,30.89733,2543.3,2542.9,0.6412]
[1750419155645,0.78638,2543.1,2543.0,0.78635]
[1750419155949,24.71338,2543.1,2543.0,2.07385]
[1750419156250,24.71338,2543.1,2543.0,7.8522]
[1750419156444,0.78639,2543.0,2542.9,1.4276]
[1750419156649,0.78639,2543.0,2542.9,0.6412]
[1750419156846,0.78639,2543.0,2542.9,8.4934]
[1750419157153,0.78639,2543.0,2542.9,9.27982]
[1750419157352,0.78645,2542.9,2542.8,0.78642]
[1750419157851,0.78645,2542.9,2542.8,8.63862]
[1750419158050,0.78645,2542.9,2542.8,9.89772]
[1750419158355,24.72239,2543.1,2543.0,0.78635]
[1750419158546,30.91835,2543.2,2543.1,0.78632]
[1750419158751,30.91835,2543.2,2543.1,9.89762]
[1750419158954,6.185,2543.2,2543.1,12.9901756]
[1750419159255,3.2078,2543.8,2543.4,1.96568]
[1750419159451,3.2078,2543.8,2543.7,8.63837]
[1750419159853,3.2078,2543.8,2543.7,9.89747]
[1750419160851,0.78609,2544.0,2543.9,0.78611]
[1750419161250,0.78609,2544.0,2543.9,8.63831]
[1750419161460,0.78609,2544.0,2543.9,9.30341]
[1750419161857,3.8786456,2544.0,2543.9,8.5173]
[1750419162063,5.0577856,2544.0,2543.4,3.0925556]
[1750419162257,0.78614,2543.8,2543.7,7.8522]
[1750419162855,7.0864956,2543.8,2543.7,7.8522]
[1750419163062,0.78621,2543.6,2543.5,1.9864]
[1750419163356,0.78621,2543.6,2543.5,0.6651]
[1750419163563,3.8787656,2543.6,2543.5,8.5173]
[1750419163763,0.78627,2543.4,2543.3,0.06933781]
[1750419163963,0.78627,2543.4,2543.3,8.57493781]
[1750419164166,0.78627,2543.4,2543.3,0.72273781]
[1750419164764,10.0648256,2543.4,2543.3,0.06933781]
[1750419164964,10.7083256,2543.4,2543.3,0.06933781]
[1750419165962,12.0637256,2543.4,2543.3,0.06933781]
[1750419166561,0.78643,2542.9,2542.5,3.0925556]